fUST/lending_fUST_20260107
["ID","MTS","AMOUNT","RATE_DAILY","PERIOD"]
[400572815,1767729043963,-475.0,0.00024658,30]
[400572817,1767729043972,-475.0,0.00024658,30]
[400572820,1767729043981,-475.0,0.00024658,30]
[400572821,1767729043990,-475.0,0.00024658,30]
[400572823,1767729043999,-475.0,0.00024658,30]
[400572825,1767729044010,-475.0,0.00024658,30]
[400572827,1767729044019,-475.0,0.00024658,30]
[400572829,1767729044028,-475.0,0.00024658,30]
[400572831,1767729044037,-475.0,0.00024658,30]
[400572833,1767729044046,-475.0,0.00024658,30]
[400572835,1767729044055,-475.0,0.00024658,30]
[400572837,1767729044064,-475.0,0.00024658,30]
[400572839,1767729044073,-475.0,0.00024658,30]
[400572841,1767729044083,-475.0,0.00024658,30]
[400572843,1767729044092,-475.0,0.00024658,30]
[400572845,1767729044101,-475.0,0.00024658,30]
[400572847,1767729044111,-475.0,0.00024658,30]
[400572849,1767729044120,-475.0,0.00024658,30]
[400572851,1767729044129,-475.0,0.00024658,30]
[400572853,1767729044139,-475.0,0.00024658,30]
[400572855,1767729044149,-475.0,0.00024658,30]
[400572857,1767729044159,-475.0,0.00024658,30]
[400572859,1767729044168,-475.0,0.00024658,30]
[400572861,1767729044177,-475.0,0.00024658,30]
[400572863,1767729044186,-475.0,0.00024658,30]
[400572865,1767729044195,-475.0,0.00024658,30]
[400572867,1767729044205,-475.0,0.00024658,30]
[400572869,1767729044214,-475.0,0.00024658,30]
[400572871,1767729044223,-475.0,0.00024658,30]
[400572873,1767729044233,-475.0,0.00024658,30]
[400572875,1767729044242,-475.0,0.00024658,30]
[400572877,1767729044251,-475.0,0.00024658,30]
[400572879,1767729044260,-475.0,0.00024658,30]
[400572881,1767729044270,-475.0,0.00024658,30]
[400572883,1767729044279,-475.0,0.00024658,30]
[400572885,1767729044289,-475.0,0.00024658,30]
[400572887,1767729044298,-475.0,0.00024658,30]
[400572889,1767729044307,-475.0,0.00024658,30]
[400572891,1767729044316,-475.0,0.00024658,30]
[400572893,1767729044325,-475.0,0.00024658,30]
[400572895,1767729044334,-475.0,0.00024658,30]
[400572897,1767729044343,-475.0,0.00024658,30]
[400572899,1767729044352,-475.0,0.00024658,30]
[400572901,1767729044361,-475.0,0.00024658,30]
[400572902,1767729044370,-475.0,0.00024658,30]
[400572903,1767729044380,-475.0,0.00024658,30]
[400572904,1767729044389,-475.0,0.00024658,30]
[400572905,1767729044399,-475.0,0.00024658,30]
[400572906,1767729044408,-475.0,0.00024658,30]
[400572907,1767729044418,-475.0,0.00024658,30]
[400572908,1767729044428,-475.0,0.00024658,30]
[400572909,1767729044437,-500.0,0.00024669,2]
[400572910,1767729044447,-2200.0,0.00024676,2]
[400572911,1767729044456,-2000.0,0.00024683,30]
[400572912,1767729044465,-2000.0,0.00024683,30]
[400572913,1767729044474,-2000.0,0.00024683,30]
[400572914,1767729044483,-188.515,0.00024683,30]
[400572915,1767729044493,-3050.1,0.000247,7]
[400572916,1767729044502,-632.0,0.00024704,2]
[400572917,1767729044513,-500.0,0.00024721,2]
[400572919,1767729044523,-2200.0,0.00024769,2]
[400572921,1767729044532,-632.0,0.00024843,2]
[400572923,1767729044541,-151.0,0.000249,7]
[400572925,1767729044550,-155.649023,0.000249,7]
[400572927,1767729044560,-151.0,0.000249,7]
[400572929,1767729044571,-152.72294,0.000249,7]
[400572931,1767729044581,-151.0,0.000249,7]
[400572933,1767729044590,-151.0,0.000249,7]
[400572935,1767729044599,-439.85281073,0.000249,2]
[400572937,1767729044608,-1757.65183169,0.000249,2]
[400572939,1767729044619,-151.0,0.000249,7]
[400572941,1767729044628,-151.0,0.000249,7]
[400572943,1767729044638,-257.45092,0.000249,7]
[400572945,1767729044648,-151.0,0.000249,7]
[400572947,1767729044657,-151.0,0.000249,7]
[400572949,1767729044666,-151.0,0.000249,7]
[400572951,1767729044675,-1203.60718042,0.000249,2]
[400572953,1767729044686,-4814.42872166,0.000249,2]
[400572956,1767729044696,-151.0,0.000249,7]
[400572958,1767729044705,-152.500089,0.000249,7]
[400572960,1767729044715,-151.0,0.000249,7]
[400572962,1767729044724,-151.0,0.000249,7]
[400572966,1767729044733,-151.0,0.000249,7]
[400572968,1767729044773,-151.0,0.000249,7]
[400572970,1767729044782,-151.0,0.000249,7]
[400572972,1767729044790,-151.0,0.000249,7]
[400572974,1767729044799,-166.442051,0.000249,7]
[400572977,1767729044817,-166.442051,0.000249,7]
[400572979,1767729044833,-151.0,0.000249,7]
[400572981,1767729044842,-166.442051,0.000249,7]
[400572983,1767729044851,-166.442051,0.000249,7]
[400572985,1767729044861,-151.0,0.000249,7]
[400572987,1767729044871,-158.624878,0.000249,7]
[400572989,1767729044880,-151.0,0.000249,7]
[400572991,1767729044889,-151.0,0.000249,7]
[400572993,1767729044901,-655.31642,0.000249,7]
[400572995,1767729044911,-655.31642,0.000249,7]
[400572997,1767729044920,-655.31642,0.000249,7]
[400572999,1767729044930,-655.31642,0.000249,7]
[400573001,1767729044939,-357.84307201,0.000249,2]
[400573003,1767729044948,-1431.37228802,0.000249,2]
[400573005,1767729044958,-3220.58764805,0.000249,2]
[400573007,1767729044968,-5725.4891521,0.000249,2]
[400573009,1767729044977,-8946.07680015,0.000249,2]
[400573011,1767729044986,-620216.140987,0.000249,2]
[400573013,1767729044996,-176.133271,0.000249,7]
[400573015,1767729045006,-151.0,0.000249,7]
[400573017,1767729045016,-151.0,0.000249,7]
[400573019,1767729045025,-5000.0,0.000249,7]
[400573022,1767729045035,-5000.0,0.000249,7]
[400573023,1767729045044,-151.893811,0.000249,7]
[400573026,1767729045054,-5000.0,0.000249,7]
[400573028,1767729045063,-5000.0,0.000249,7]
[400573030,1767729045072,-176.786529,0.000249,7]
[400573032,1767729045082,-176.786529,0.000249,7]
[400573034,1767729045091,-176.786529,0.000249,7]
[400573036,1767729045100,-176.786529,0.000249,7]
[400573038,1767729045110,-151.0,0.000249,7]
[400573040,1767729045119,-151.0,0.000249,7]
[400573042,1767729045127,-151.0,0.000249,7]
[400573044,1767729045137,-151.0,0.000249,7]
[400573046,1767729045146,-156.236454,0.000249,7]
[400573048,1767729045155,-264.296067,0.000249,7]
[400573050,1767729045164,-151.0,0.000249,7]
[400573052,1767729045172,-151.0,0.000249,7]
[400573054,1767729045181,-151.0,0.000249,7]
[400573056,1767729045192,-151.0,0.000249,7]
[400573058,1767729045202,-151.0,0.000249,7]
[400573060,1767729045210,-224.055312,0.000249,7]
[400573062,1767729045219,-151.0,0.000249,7]
[400573064,1767729045229,-2200.0,0.00024934,2]
[400573066,1767729045238,-632.0,0.0002499,2]
[400573068,1767729045247,-500.0,0.00025007,7]
[400573070,1767729045257,-2000.0,0.00025035,7]
[400573072,1767729045266,-2200.0,0.00025037,7]
[400573074,1767729045276,-2200.0,0.00025075,7]
[400573076,1767729045284,-587.58501506,0.00025075,7]
[400573078,1767729045294,-2030.296672,0.00025116,2]
[400573080,1767729045303,-500.0,0.00025123,7]
[400573082,1767729045312,-2105.41764886,0.00025171,2]
[400573084,1767729045321,-250.0,0.00025205,2]
[400573086,1767729045331,-880.39814706,0.00025205,2]
[400573088,1767729045340,-2183.31810187,0.00025226,2]
[400573090,1767729045349,-1021.32746018,0.00025243,21]
[400573092,1767729045358,-632.0,0.00025247,2]
[400573094,1767729045367,-632.0,0.0002527,2]
[400573096,1767729045377,-2264.10087164,0.00025281,2]
[400573098,1767729045386,-632.0,0.00025332,2]
[400573100,1767729045395,-1683.0249248,0.00025336,2]
[400573102,1767729045404,-204.749226,0.00025342,2]
[400573104,1767729045414,-632.0,0.00025409,2]
[400573106,1767729045423,-2200.0,0.0002541,7]
[400573108,1767729045433,-2200.0,0.00025432,7]
[400573110,1767729045442,-2200.0,0.00025462,7]
[400573112,1767729045451,-10000.0,0.00025531,2]
[400573114,1767729045461,-632.0,0.00025537,2]
[400573116,1767729045470,-632.0,0.00025552,2]
[400573118,1767729045480,-576.25184216,0.00025585,2]
[400573120,1767729045489,-284.75,0.000256,7]
[400573122,1767729045498,-240.04,0.000256,7]
[400573124,1767729045508,-500.0,0.00025617,2]
[400573126,1767729045518,-500.0,0.00025617,2]
[400573128,1767729045527,-500.0,0.00025617,2]
[400573130,1767729045537,-10847.0,0.00025617,2]
[400573132,1767729045547,-632.0,0.00025617,2]
[400573134,1767729045556,-632.0,0.00025631,2]
[400573136,1767729045566,-632.0,0.00025652,2]
[400573138,1767729045575,-632.0,0.00025678,2]
[400573141,1767729045585,-2200.0,0.00025697,7]
[400573143,1767729045594,-22465.31,0.000257,2]
[400573145,1767729045606,-151.0,0.000257,7]
[400573147,1767729045615,-178.486087,0.000257,7]
[400573149,1767729045624,-178.486087,0.000257,7]
[400573151,1767729045634,-178.486087,0.000257,7]
[400573153,1767729045643,-151.0,0.000257,7]
[400573155,1767729045653,-151.0,0.000257,7]
[400573157,1767729045666,-178.486087,0.000257,7]
[400573159,1767729045677,-151.0,0.000257,7]
[400573161,1767729045687,-151.0,0.000257,7]
[400573164,1767729045697,-151.0,0.000257,7]
[400573166,1767729045706,-151.0,0.000257,7]
[400573168,1767729045716,-151.0,0.000257,7]
[400573170,1767729045725,-182.954816,0.000257,7]
[400573172,1767729045734,-153.743312,0.000257,7]
[400573174,1767729045743,-153.789809,0.000257,7]
[400573176,1767729045754,-746.767727,0.000257,7]
[400573178,1767729045766,-746.767727,0.000257,7]
[400573180,1767729045776,-746.767727,0.000257,7]
[400573182,1767729045786,-746.767727,0.000257,7]
[400573184,1767729045796,-2200.0,0.00025719,7]
[400573186,1767729045805,-500.0,0.00025729,7]
[400573188,1767729045815,-2200.0,0.00025748,7]
[400573190,1767729045827,-350.0,0.00025753,2]
[400573192,1767729045836,-500.0,0.00025754,2]
[400573194,1767729045846,-569.00000001,0.00025754,2]
[400573196,1767729045856,-500.0,0.00025754,2]
[400573198,1767729045870,-250.0,0.00025754,2]
[400573201,1767729045880,-10847.0,0.00025754,2]
[400573203,1767729045892,-500.0,0.00025802,7]
[400573205,1767729045903,-2200.0,0.00025813,7]
[400573207,1767729045913,-2200.0,0.00025827,7]
[400573209,1767729045923,-500.0,0.00025891,2]
[400573211,1767729045933,-500.0,0.00025891,2]
[400573213,1767729045943,-10847.0,0.00025891,2]
[400573215,1767729045953,-632.0,0.00025937,2]
[400573217,1767729045963,-186.5,0.00025958,2]
[400573219,1767729045974,-500.0,0.0002596,7]
[400573222,1767729045984,-2000.0,0.0002597,7]
[400573223,1767729045994,-444.11,0.00026,2]
[400573225,1767729046004,-151.0,0.00026,7]
[400573228,1767729046015,-500.0,0.00026,7]
[400573230,1767729046025,-500.0,0.00026,7]
[400573232,1767729046035,-500.0,0.00026,7]
[400573234,1767729046045,-500.0,0.00026,7]
[400573236,1767729046055,-258.099142,0.00026,7]
[400573238,1767729046066,-258.099142,0.00026,7]
[400573240,1767729046076,-258.099142,0.00026,7]
[400573242,1767729046087,-258.099142,0.00026,7]
[400573245,1767729046098,-363.862086,0.00026,7]
[400573247,1767729046108,-363.862086,0.00026,7]
[400573249,1767729046118,-363.862086,0.00026,7]
[400573251,1767729046128,-363.862086,0.00026,7]
[400573253,1767729046139,-1020.73276343,0.00026,2]
[400573255,1767729046148,-500.0,0.00026028,2]
[400573257,1767729046157,-155.4754909,0.00026028,2]
[400573259,1767729046167,-500.0,0.00026028,2]
[400573261,1767729046177,-10847.0,0.00026028,2]
[400573263,1767729046187,-191.004961,0.00026028,7]
[400573265,1767729046196,-151.0,0.00026028,7]
[400573267,1767729046206,-151.0,0.00026028,7]
[400573269,1767729046216,-151.0,0.00026028,7]
[400573271,1767729046226,-151.0,0.00026028,7]
[400573273,1767729046235,-151.0,0.00026028,7]
[400573275,1767729046244,-409.150764,0.00026028,7]
[400573278,1767729046254,-409.150764,0.00026028,7]
[400573280,1767729046264,-409.150764,0.00026028,7]
[400573282,1767729046274,-409.150764,0.00026028,7]
[400573284,1767729046284,-181.138598,0.00026046,7]
[400573286,1767729046295,-151.0,0.00026046,7]
[400573288,1767729046305,-251.46189,0.00026046,7]
[400573290,1767729046315,-501.631256,0.00026046,7]
[400573292,1767729046325,-501.631256,0.00026046,7]
[400573294,1767729046335,-501.631256,0.00026046,7]
[400573296,1767729046347,-501.631256,0.00026046,7]
[400573298,1767729046357,-500.0,0.00026165,2]
[400573300,1767729046367,-200.0,0.00026165,2]
[400573303,1767729046376,-500.0,0.00026165,2]
[400573305,1767729046387,-10847.0,0.00026165,2]
[400573307,1767729046397,-500.0,0.00026198,7]
[400573309,1767729046406,-279.35774616,0.00026296,7]
[400573311,1767729046416,-450.0,0.00026301,2]
[400573313,1767729046426,-500.0,0.00026302,2]
[400573315,1767729046436,-500.0,0.00026302,2]
[400573317,1767729046446,-10847.0,0.00026302,2]
[400573319,1767729046456,-500.0,0.00026351,7]
[400573321,1767729046466,-2200.0,0.00026364,7]
[400573323,1767729046476,-500.0,0.00026439,2]
[400573325,1767729046486,-500.0,0.00026439,2]
[400573327,1767729046496,-10847.0,0.00026439,2]
[400573330,1767729046506,-500.0,0.00026446,7]
[400573332,1767729046518,-500.0,0.00026482,7]
[400573334,1767729046529,-162.0,0.00026548,21]
[400573336,1767729046539,-2200.0,0.00026567,7]
[400573338,1767729046550,-500.0,0.00026576,2]
[400573340,1767729046560,-500.0,0.00026576,2]
[400573342,1767729046571,-10847.0,0.00026576,2]
[400573344,1767729046581,-500.0,0.00026588,7]
[400573346,1767729046591,-500.0,0.00026624,7]
[400573348,1767729046600,-3164.20106546,0.00026669,7]
[400573350,1767729046610,-250.0,0.000267,7]
[400573353,1767729046620,-250.0,0.000267,7]
[400573355,1767729046630,-250.0,0.000267,7]
[400573357,1767729046641,-250.0,0.000267,7]
[400573359,1767729046651,-206.8,0.000267,7]
[400573361,1767729046660,-1155.24154488,0.00026703,24]
[400573363,1767729046670,-558.00072349,0.00026713,2]
[400573365,1767729046681,-500.0,0.00026713,2]
[400573367,1767729046691,-10847.0,0.00026713,2]
[400573369,1767729046700,-550.0,0.00026849,2]
[400573371,1767729046710,-10847.0,0.0002685,2]
[400573373,1767729046720,-2827.11,0.000269,14]
[400573375,1767729046730,-2000.0,0.00026906,7]
[400573377,1767729046740,-10847.0,0.00026987,2]
[400573379,1767729046750,-3050.1,0.00027,7]
[400573381,1767729046759,-250.0,0.00027,7]
[400573383,1767729046770,-250.0,0.00027,7]
[400573385,1767729046780,-184.0,0.00027,7]
[400573388,1767729046790,-1019.0,0.00027,2]
[400573390,1767729046800,-10847.0,0.00027124,2]
[400573392,1767729046810,-10847.0,0.00027261,2]
[400573394,1767729046822,-223.81332617,0.00027397,2]
[400573396,1767729046832,-1749.78,0.00027397,2]
[400573398,1767729046842,-156.66932831,0.00027397,2]
[400573400,1767729046852,-650.0,0.00027397,5]
[400573402,1767729046863,-153.720433,0.00027397,7]
[400573404,1767729046872,-500.0,0.00027397,5]
[400573406,1767729046882,-514.72943371,0.00027397,5]
[400573408,1767729046892,-10847.0,0.00027398,2]
[400573410,1767729046901,-10847.0,0.00027535,2]
[400573412,1767729046910,-2000.0,0.00027575,7]
[400573414,1767729046920,-2000.0,0.00027584,7]
[400573416,1767729046930,-622.14800658,0.00027585,2]
[400573418,1767729046941,-2347.07115484,0.00027587,2]
[400573420,1767729046950,-2000.0,0.00027593,7]
[400573422,1767729046959,-2000.0,0.00027601,7]
[400573424,1767729046969,-186.5,0.00027632,2]
[400573426,1767729046979,-10847.0,0.00027672,2]
[400573429,1767729046989,-2347.07115484,0.00027728,2]
[400573431,1767729046999,-10847.0,0.00027809,2]
[400573433,1767729047009,-2000.0,0.00027841,7]
[400573435,1767729047021,-750.0,0.00027945,5]
[400573437,1767729047031,-1000.0,0.00027945,5]
[400573439,1767729047041,-250.0,0.00027945,5]
[400573441,1767729047051,-250.0,0.00027945,5]
[400573443,1767729047061,-10847.0,0.00027946,2]
[400573445,1767729047071,-1019.0,0.00028,2]
[400573447,1767729047080,-10847.0,0.00028083,2]
[400573449,1767729047090,-2347.07115484,0.00028134,2]
[400573452,1767729047100,-1295.3896918,0.00028163,27]
[400573454,1767729047110,-210.0,0.00028192,28]
[400573456,1767729047120,-10847.0,0.0002822,2]
[400573458,1767729047130,-10847.0,0.00028357,2]
[400573459,1767729047140,-2347.07115484,0.00028439,2]
[400573460,1767729047150,-850.0,0.00028493,5]
[400573461,1767729047159,-1344.52633851,0.00028493,5]
[400573462,1767729047169,-350.0,0.00028493,5]
[400573463,1767729047180,-350.0,0.00028493,5]
[400573464,1767729047189,-10847.0,0.00028494,2]
[400573465,1767729047199,-284.75,0.000285,7]
[400573466,1767729047208,-240.04,0.000285,7]
[400573467,1767729047218,-10847.0,0.00028631,2]
[400573468,1767729047227,-22465.31,0.000287,2]
[400573469,1767729047237,-10000.0,0.00028759,20]
[400573470,1767729047249,-2347.07115484,0.00028762,2]
[400573471,1767729047258,-1749.78,0.00028767,4]
[400573472,1767729047268,-204.749226,0.00028767,60]
[400573473,1767729047277,-10850.44838029,0.00028768,2]
[400573474,1767729047287,-2000.0,0.00028776,7]
[400573476,1767729047296,-2347.07115484,0.00028847,2]
[400573478,1767729047306,-444.11,0.000289,2]
[400573480,1767729047315,-1019.0,0.00029,2]
[400573482,1767729047326,-950.0,0.00029041,5]
[400573484,1767729047336,-450.0,0.00029041,5]
[400573486,1767729047346,-450.0,0.00029041,5]
[400573488,1767729047357,-2347.07115484,0.00029104,2]
[400573490,1767729047367,-10000.0,0.0002918,28]
[400573493,1767729047377,-10000.0,0.00029212,3]
[400573495,1767729047387,-157.17127242,0.00029274,5]
[400573497,1767729047397,-3050.1,0.000293,7]
[400573499,1767729047407,-186.5,0.00029305,3]
[400573501,1767729047416,-2145.0,0.00029436,2]
[400573503,1767729047426,-1365.0,0.00029436,2]
[400573505,1767729047436,-628.0,0.00029436,2]
[400573507,1767729047446,-417.0,0.00029436,2]
[400573509,1767729047456,-862.869,0.00029436,2]
[400573511,1767729047465,-2347.07115484,0.00029566,2]
[400573513,1767729047475,-668.04417099,0.00029585,2]
[400573515,1767729047485,-1050.0,0.00029589,5]
[400573517,1767729047495,-550.0,0.00029589,5]
[400573519,1767729047505,-550.0,0.00029589,5]
[400573521,1767729047515,-2827.11,0.000296,14]
[400573523,1767729047525,-1441.50600451,0.00029623,29]
[400573525,1767729047535,-2347.07115484,0.0002971,2]
[400573527,1767729047545,-2000.0,0.00029712,7]
[400573530,1767729047555,-2347.07115484,0.00029935,2]
[400573532,1767729047564,-38000.0,0.00029978,10]
[400573534,1767729047574,-151.0,0.00029986,7]
[400573536,1767729047584,-151.0,0.00029986,7]
[400573538,1767729047594,-151.0,0.00029986,7]
[400573540,1767729047604,-151.0,0.00029986,7]
[400573542,1767729047615,-151.0,0.00029986,7]
[400573556,1767729047739,-151.0,0.00029986,7]
[400573558,1767729047749,-38000.0,0.00029986,10]
[400573560,1767729047758,-151.0,0.00029995,7]
[400573562,1767729047767,-151.0,0.00029995,7]
[400573564,1767729047776,-151.0,0.00029995,7]
[400573566,1767729047786,-151.0,0.00029995,7]
[400573568,1767729047795,-151.0,0.00029995,7]
[400573570,1767729047805,-151.0,0.00029995,7]
[400573572,1767729047814,-151.0,0.00029995,7]
[400573574,1767729047828,-151.589246,0.00029995,7]
[400573576,1767729047837,-151.0,0.00029995,7]
[400573578,1767729047846,-286.600994,0.00029995,7]
[400573581,1767729047855,-5000.0,0.00029995,7]
[400573582,1767729047867,-5000.0,0.00029995,7]
[400573584,1767729047876,-5000.0,0.00029995,7]
[400573586,1767729047885,-5000.0,0.00029995,7]
[400573589,1767729047896,-176.786529,0.00029995,7]
[400573591,1767729047905,-176.786529,0.00029995,7]
[400573593,1767729047915,-176.786529,0.00029995,7]
[400573595,1767729047925,-176.786529,0.00029995,7]
[400573597,1767729047935,-162.040453,0.00029995,7]
[400573599,1767729047945,-151.0,0.00029995,7]
[400573601,1767729047954,-151.0,0.00029995,7]
[400573603,1767729047962,-151.0,0.00029995,7]
[400573605,1767729047971,-38000.0,0.00029995,10]
[400573607,1767729047980,-10000.0,0.00029999,30]
[400573609,1767729047989,-166.0,0.0003,14]
[400573611,1767729047998,-1019.0,0.0003,7]
[400573613,1767729048007,-507.0,0.0003,14]
[400573614,1767729048017,-38000.0,0.00030004,10]
[400573616,1767729048026,-1000.0,0.00030004,14]
[400573618,1767729048036,-167.90581026,0.00030004,14]
[400573620,1767729048045,-151.0,0.00030004,14]
[400573622,1767729048054,-38000.0,0.00030013,10]
[400573624,1767729048063,-151.0,0.00030013,7]
[400573626,1767729048072,-178.486087,0.00030013,7]
[400573628,1767729048082,-178.486087,0.00030013,7]
[400573630,1767729048090,-178.486087,0.00030013,7]
[400573632,1767729048100,-151.0,0.00030013,7]
[400573635,1767729048109,-151.0,0.00030013,7]
[400573636,1767729048119,-178.486087,0.00030013,7]
[400573638,1767729048128,-155.50541,0.00030013,7]
[400573641,1767729048137,-151.0,0.00030013,7]
[400573643,1767729048146,-151.0,0.00030013,7]
[400573645,1767729048155,-151.0,0.00030013,7]
[400573647,1767729048165,-258.528484,0.00030013,7]
[400573649,1767729048175,-746.767727,0.00030013,7]
[400573651,1767729048184,-746.767727,0.00030013,7]
[400573653,1767729048193,-746.767727,0.00030013,7]
[400573655,1767729048202,-746.767727,0.00030013,7]
[400573657,1767729048211,-38000.0,0.00030022,10]
[400573659,1767729048221,-151.0,0.0003003,7]
[400573661,1767729048230,-151.0,0.0003003,7]
[400573663,1767729048239,-151.0,0.0003003,7]
[400573665,1767729048248,-151.0,0.0003003,7]
[400573667,1767729048257,-170.976512,0.0003003,7]
[400573669,1767729048267,-151.0,0.0003003,7]
[400573671,1767729048276,-166.442051,0.0003003,7]
[400573673,1767729048286,-166.442051,0.0003003,7]
[400573675,1767729048296,-151.0,0.0003003,7]
[400573677,1767729048306,-166.442051,0.0003003,7]
[400573679,1767729048315,-166.442051,0.0003003,7]
[400573682,1767729048331,-151.0,0.0003003,7]
[400573684,1767729048344,-151.0,0.0003003,7]
[400573686,1767729048354,-298.535992,0.0003003,7]
[400573688,1767729048364,-655.31642,0.0003003,7]
[400573690,1767729048373,-655.31642,0.0003003,7]
[400573692,1767729048382,-655.31642,0.0003003,7]
[400573695,1767729048392,-655.31642,0.0003003,7]
[400573697,1767729048402,-151.0,0.0003003,7]
[400573699,1767729048412,-151.0,0.0003003,7]
[400573701,1767729048421,-151.0,0.0003003,7]
[400573703,1767729048431,-221.765393,0.0003003,7]
[400573705,1767729048440,-151.0,0.0003003,7]
[400573707,1767729048449,-409.150764,0.0003003,7]
[400573709,1767729048459,-409.150764,0.0003003,7]
[400573711,1767729048469,-409.150764,0.0003003,7]
[400573713,1767729048478,-409.150764,0.0003003,7]
[400573715,1767729048488,-287.718466,0.0003003,7]
[400573717,1767729048497,-500.0,0.0003003,7]
[400573720,1767729048507,-500.0,0.0003003,7]
[400573722,1767729048517,-500.0,0.0003003,7]
[400573724,1767729048526,-500.0,0.0003003,7]
[400573726,1767729048535,-258.099142,0.0003003,7]
[400573728,1767729048545,-258.099142,0.0003003,7]
[400573730,1767729048555,-258.099142,0.0003003,7]
[400573732,1767729048564,-258.099142,0.0003003,7]
[400573734,1767729048574,-363.862086,0.0003003,7]
[400573736,1767729048584,-363.862086,0.0003003,7]
[400573738,1767729048593,-363.862086,0.0003003,7]
[400573740,1767729048602,-363.862086,0.0003003,7]
[400573742,1767729048614,-38000.0,0.0003003,10]
[400573744,1767729048624,-151.0,0.00030039,7]
[400573746,1767729048633,-501.631256,0.00030039,7]
[400573748,1767729048642,-501.631256,0.00030039,7]
[400573750,1767729048653,-501.631256,0.00030039,7]
[400573752,1767729048662,-501.631256,0.00030039,7]
[400573754,1767729048671,-38000.0,0.00030039,10]
[400573757,1767729048682,-38000.0,0.00030048,10]
[400573759,1767729048691,-38000.0,0.00030057,10]
[400573761,1767729048700,-151.0,0.00030065,7]
[400573762,1767729048710,-179.970961,0.00030065,7]
[400573765,1767729048719,-151.0,0.00030065,7]
[400573767,1767729048729,-151.0,0.00030065,7]
[400573768,1767729048739,-151.0,0.00030065,7]
[400573771,1767729048749,-151.0,0.00030065,7]
[400573773,1767729048758,-38000.0,0.00030066,10]
[400573774,1767729048768,-38000.0,0.00030074,10]
[400573777,1767729048777,-38000.0,0.00030083,10]
[400573779,1767729048786,-38000.0,0.00030092,10]
[400573781,1767729048796,-2874.83428113,0.000301,7]
[400573783,1767729048805,-38000.0,0.00030101,10]
[400573784,1767729048816,-151.0,0.00030101,7]
[400573787,1767729048829,-151.0,0.00030101,7]
[400573789,1767729048838,-151.0,0.00030101,7]
[400573791,1767729048849,-251.543708,0.00030101,7]
[400573793,1767729048859,-251.543708,0.00030101,7]
[400573795,1767729048871,-251.543708,0.00030101,7]
[400573797,1767729048880,-251.543708,0.00030101,7]
[400573799,1767729048889,-151.0,0.00030101,7]
[400573801,1767729048899,-151.0,0.00030101,7]
[400573803,1767729048909,-151.0,0.00030101,7]
[400573805,1767729048918,-151.0,0.00030101,7]
[400573807,1767729048928,-212.54773642,0.00030109,10]
[400573809,1767729048937,-38000.0,0.0003011,10]
[400573811,1767729048948,-1000.0,0.00030116,14]
[400573813,1767729048958,-151.0,0.00030118,7]
[400573815,1767729048968,-151.0,0.00030118,7]
[400573817,1767729048979,-151.0,0.00030118,7]